fUSD/lending_fUSD_20240404
["ID","MTS","AMOUNT","RATE_DAILY","PERIOD"]
[321484455,1712235037916,-533.58337248,0.00036209,2]
[321484457,1712235037929,-291.18662752,0.00036209,2]
[321484459,1712235037939,-155.71886249,0.00036256,7]
[321484460,1712235037947,-150.0,0.00036264,2]
[321484461,1712235037957,-67.9812661,0.00036264,2]
[321484462,1712235037981,-82.0187339,0.00036264,2]
[321484463,1712235037990,-150.0,0.00036264,2]
[321484464,1712235038000,-150.0,0.00036264,2]
[321484465,1712235038009,-151.82808096,0.00036276,7]
[321484466,1712235038018,-674.28,0.00036402,2]
[321484467,1712235038028,-152.61534656,0.00036547,7]
[321484468,1712235038039,-600.0,0.0003658,2]
[321484469,1712235038050,-161.57528887,0.00036591,4]
[321484471,1712235038082,-119.13736438,0.00036591,4]
[321484472,1712235038092,-151.82808096,0.00036614,7]
[321484473,1712235038101,-167.46638224,0.0003665,2]
[321484474,1712235038110,-158.74407606,0.00036663,7]
[321484475,1712235038119,-152.61534656,0.00036976,7]
[321484476,1712235038131,-154.06850799,0.00036995,7]
[321484477,1712235038140,-154.25,0.00037024,2]
[321484478,1712235038149,-152.61534656,0.0003705,7]
[321484479,1712235038158,-163.19664356,0.00037084,7]
[321484480,1712235038167,-155.71886249,0.00037119,7]
[321484481,1712235038176,-155.71886249,0.00037153,7]
[321484482,1712235038188,-1504.63578578,0.00037154,2]
[321484483,1712235038201,-1246.36421422,0.00037154,2]
[321484484,1712235038210,-332.25,0.0003723,2]
[321484485,1712235038220,-155.71886249,0.00037232,7]
[321484486,1712235038229,-155.89729847,0.00037279,7]
[321484487,1712235038238,-155.71886249,0.00037504,7]
[321484488,1712235038247,-164.13527554,0.00037513,7]
[321484489,1712235038256,-151.63094368,0.00037524,7]
[321484490,1712235038265,-151.63094368,0.0003757,7]
[321484491,1712235038276,-151.82808096,0.00037688,7]
[321484492,1712235038286,-6390.55772047,0.00037737,2]
[321484493,1712235038297,-3131.87472,0.00037737,2]
[321484494,1712235038336,-477.56755953,0.00037737,2]
[321484495,1712235038345,-400.0,0.00037744,2]
[321484496,1712235038354,-23.62875085,0.00037873,7]
[321484513,1712235041000,-131.77815204,0.00037873,7]
[321484515,1712235041009,-147.92951802,0.00037879,7]
[321484516,1712235041117,-8.56587463,0.00037879,7]
[321484517,1712235041127,-152.61534656,0.00037884,7]
[321484518,1712235041137,-997.29,0.00038027,15]
[321484519,1712235041146,-155.71886249,0.00038083,7]
[321484520,1712235041155,-153.87719977,0.00038135,7]
[321484521,1712235041165,-164.13527554,0.0003821,7]
[321484522,1712235041174,-167.46638224,0.00038275,2]
[321484523,1712235041184,-151.82808096,0.00038336,7]
[321484524,1712235041195,-159.12958476,0.0003839,7]
[321484525,1712235041204,-3079.68290844,0.00038398,4]
[321484526,1712235041245,-456.090218,0.00038398,4]
[321484527,1712235041255,-155.0,0.00038398,4]
[321484528,1712235041264,-709.5004242,0.00038399,4]
[321484530,1712235041440,-1050.64635685,0.00038399,4]
[321484531,1712235041449,-635.45791648,0.00038399,4]
[321484532,1712235041459,-1692.939,0.000384,2]
[321484533,1712235041467,-157.30997334,0.00038481,7]
[321484534,1712235041477,-490.11815053,0.000385,4]
[321484535,1712235041486,-155.40690289,0.00038514,7]
[321484536,1712235041495,-155.01816656,0.00038564,7]
[321484537,1712235041505,-674.28,0.00038666,2]
[321484538,1712235041514,-158.74407606,0.00038975,7]
[321484539,1712235041523,-155.71886249,0.00039036,7]
[321484540,1712235041533,-153.82631398,0.0003907,7]
[321484541,1712235041543,-155.55076472,0.00039094,4]
[321484542,1712235041552,-158.74407606,0.00039195,7]
[321484543,1712235041561,-152.61534656,0.00039196,7]
[321484544,1712235041571,-242.68,0.000392,2]
[321484545,1712235041579,-150.0,0.00039264,2]
[321484546,1712235041589,-150.0,0.00039264,2]
[321484547,1712235041598,-154.25,0.00039373,2]
[321484548,1712235041607,-155.40690289,0.00039385,7]
[321484549,1712235041616,-158.74407606,0.00039396,7]
[321484550,1712235041627,-159.12958476,0.00039419,7]
[321484551,1712235041636,-10000.0,0.00039456,2]
[321484552,1712235041645,-155.40690289,0.00039496,7]
[321484553,1712235041654,-1006.2972741,0.0003957,2]
[321484554,1712235041663,-14325.78496019,0.00039806,2]
[321484555,1712235041672,-150.0,0.00039809,2]
[321484556,1712235041681,-150.0,0.00039809,2]
[321484557,1712235041691,-200.0,0.00039809,2]
[321484558,1712235041699,-1752.046049,0.00039809,2]
[321484559,1712235041708,-155.40690289,0.00039812,7]
[321484560,1712235041718,-152.61534656,0.00039862,7]
[321484561,1712235041727,-158.99409666,0.000399,2]
[321484562,1712235041736,-348.8882,0.000399,2]
[321484563,1712235041745,-167.46638224,0.000399,2]
[321484564,1712235041754,-330.45117378,0.000399,2]
[321484565,1712235041763,-842.4319542,0.000399,2]
[321484566,1712235041773,-1000.0,0.0003997,2]
[321484567,1712235041782,-1000.0,0.0003997,2]
[321484568,1712235041791,-1000.0,0.0003997,2]
[321484569,1712235041800,-1117.59,0.00039989,2]
[321484570,1712235041809,-1117.59,0.00039989,2]
[321484571,1712235041819,-1117.59,0.00039989,2]
[321484572,1712235041829,-1117.59,0.00039989,2]
[321484573,1712235041839,-1117.59,0.00039989,2]
[321484574,1712235041848,-243.57581149,0.00039998,4]
[321484575,1712235041857,-2275.50323,0.00039999,4]
[321484576,1712235041866,-417.98042323,0.00039999,31]
[321484577,1712235041877,-210.19643518,0.0004,2]
[321484578,1712235041886,-598166.92155144,0.0004,12]
[321484580,1712235043302,-263.34280345,0.00039969,4]
[321484581,1712235043311,-3037.91941955,0.0004,12]
[321484582,1712235043342,-596.62828519,0.0004,12]
[321484583,1712235043361,-1004.98186152,0.0004,12]
[321484584,1712235043386,-792.55184777,0.00039568,4]
[321484585,1712235043395,-362608.84196961,0.0004,12]
[321484586,1712235043414,-709.03983979,0.0004,12]
[321484587,1712235043426,-301.60400004,0.0004,12]
[321484588,1712235043448,-7092.4309217,0.0004,12]
[321484589,1712235044696,269.56270118,0.00025,2]
[321484590,1712235045413,1565.37998075,0.00025,2]
[321484600,1712235045848,-211.64001712,0.00039998,4]
[321484601,1712235045858,-155.0,0.00039999,4]
[321484602,1712235045869,-57.02894133,0.00039999,4]
[321484603,1712235045881,-103.42321425,0.00039999,4]
[321484604,1712235045892,-530.73136111,0.00039999,4]
[321484605,1712235045903,-485.58843995,0.00039999,4]
[321484606,1712235052658,2465.93186482,0.00025,2]
[321484607,1712235052866,862.28398827,0.00025,2]
[321484608,1712235055791,1904.50942371,0.00025,2]
[321484609,1712235070428,440219.68060585,0.00025,2]
[321484610,1712235070454,107467.26171987,0.00025,2]
[321484611,1712235070478,538000.0,0.00025,2]
[321484612,1712235110822,449.35019207,0.00023499,2]
[321484613,1712235118939,3000.95513393,0.00015,10]
[321484614,1712235119021,1324.3599174,0.00023678,2]
[321484615,1712235119043,2000.0,0.00023678,2]
[321484616,1712235119064,2000.0,0.00023678,2]
[321484617,1712235119086,2000.0,0.00023678,2]
[321484618,1712235119107,2000.0,0.00023678,2]
[321484619,1712235172121,179.21462568,0.0002,2]
[321484620,1712235183514,150.5,0.0002499,15]
[321484621,1712235183887,439.46,0.00015,2]
[321484622,1712235183968,150.5,0.0002498,15]
[321484623,1712235184473,150.5,0.0002497,15]
[321484624,1712235184957,150.5,0.0002499,15]
[321484625,1712235185450,166.0,0.0002498,15]
[321484626,1712235185517,150.5,0.0002499,15]
[321484627,1712235186004,150.5,0.0002498,15]
[321484628,1712235186548,150.5,0.0002497,15]
[321484629,1712235263792,802.69,0.0002,2]
[321484630,1712235283526,6443.73,0.00024,30]
[321484633,1712235652470,178.96,0.00020196,2]
[321484634,1712235798886,2941.68090911,0.00020196,2]
[321484635,1712235805005,410.913049,0.0001959,2]
[321484636,1712235952103,-233.12932164,0.0002196,2]
[321484637,1712235952123,-261.40204284,0.00021961,2]
[321484638,1712235952144,-2621.58302011,0.00021961,2]
[321484639,1712236034529,-407.75685115,0.00021999,2]
[321484640,1712236034550,-155.66866899,0.00022,2]
[321484641,1712236034572,-249.37192743,0.00022516,2]
[321484642,1712236042126,-466.33044559,0.00022516,2]
[321484643,1712236053091,-327.3729441,0.00022516,2]
[321484708,1712236232038,-407.75685115,0.00022515,2]
[321484709,1712236232049,-2946.02298981,0.00022516,2]
[321484710,1712236232063,-199.6456283,0.00022516,2]
[321484711,1712236232073,-863.44420511,0.00022516,2]
[321484712,1712236232083,-881.74635463,0.00022516,2]
[321484713,1712236232093,-616.9779047,0.00022516,2]
[321484714,1712236232103,-1164.04,0.00022517,2]
[321484715,1712236232114,-173.57,0.00023626,2]
[321484716,1712236232124,-150.0,0.00023677,2]
[321484717,1712236232134,-1062.06732745,0.00023678,2]
[321484718,1712236232147,-1017.20000004,0.00023678,2]
[321484719,1712236232159,-777.13261269,0.00023678,2]
[321484720,1712236232171,-613.88470233,0.00023678,2]
[321484721,1712236232184,-463.06222897,0.00023678,2]
[321484722,1712236232197,-15378.78479416,0.00023678,2]
[321484723,1712236232207,-1273.15034914,0.000237,2]
[321484724,1712236232232,-540.42938532,0.000237,2]
[321484725,1712236232268,-412.274002,0.000237,2]
[321484779,1712236238085,-1721.20644105,0.000237,2]
[321484780,1712236238117,-3552.93982249,0.000237,2]
[321484781,1712236238131,-500.0,0.00023752,2]
[321484782,1712236238146,-250.0,0.00023917,2]
[321484783,1712236238162,-500.0,0.00023917,2]
[321484784,1712236238178,-480.0,0.00023965,2]
[321484785,1712236238190,-869.1,0.00024008,2]
[321484786,1712236238204,-202.23,0.00024061,2]
[321484787,1712236238218,-192.81661701,0.00024271,2]
[321484788,1712236238253,-166.58338299,0.00024271,2]
[321484789,1712236238268,-1276.91781878,0.00024285,2]
[321484790,1712236238280,-16864.85,0.00024286,2]
[321484791,1712236238294,-18539.51,0.00024634,2]
[321484792,1712236238308,-499.99,0.00024634,2]
[321484793,1712236238320,-605.11083344,0.00024698,2]
[321484794,1712236238334,-601.25733625,0.00024714,2]
[321484795,1712236238348,-4856.8713157,0.00024715,2]
[321484796,1712236238359,-311.6439015,0.00024715,2]
[321484797,1712236238369,-13231.54075437,0.00024715,2]
[321484798,1712236238385,-4856.87131566,0.00024736,2]
[321484800,1712236238398,-13231.54075437,0.00024736,2]
[321484801,1712236238412,-311.6439015,0.00024741,2]
[321484802,1712236238427,-605.11083341,0.00024749,2]
[321484803,1712236238440,-4856.87131566,0.00024756,2]
[321484804,1712236238453,-13231.54075437,0.00024756,2]
[321484805,1712236238466,-311.6439015,0.00024768,2]
[321484806,1712236238480,-4856.87131566,0.00024777,2]
[321484807,1712236238495,-13231.54075437,0.00024777,2]
[321484808,1712236238509,-1164.04,0.00024781,2]
[321484809,1712236238522,-164.93,0.0002479,2]
[321484810,1712236238534,-311.6439015,0.00024794,2]
[321484811,1712236238545,-4856.87131566,0.00024797,2]
[321484812,1712236238558,-13231.54075437,0.00024797,2]
[321484813,1712236238572,-322.34530836,0.00024798,2]
[321484814,1712236238586,-357.24754306,0.00024798,2]
[321484815,1712236238598,-1615.46053967,0.00024798,2]
[321484816,1712236238611,-181.81632134,0.00024798,2]
[321484817,1712236238624,-30714.8641801,0.00024798,2]
[321484818,1712236238635,-814.32146556,0.00024799,2]
[321484819,1712236238646,-605.11083341,0.00024799,2]
[321484820,1712236238667,-245000.0,0.000248,2]
[321484821,1712236238679,-4856.87131566,0.00024818,2]
[321484822,1712236238691,-13231.54075437,0.00024818,2]
[321484823,1712236238702,-311.6439015,0.00024821,2]
[321484824,1712236238714,-4856.87131566,0.00024838,2]
[321484825,1712236238725,-13231.54075437,0.00024838,2]
[321484826,1712236238736,-311.6439015,0.00024847,2]
[321484827,1712236238749,-605.11083341,0.0002485,2]
[321484828,1712236238761,-4856.87131566,0.00024859,2]
[321484829,1712236238773,-13231.54075437,0.00024859,2]
[321484830,1712236238785,-311.6439015,0.00024874,2]
[321484831,1712236238798,-4856.87131566,0.00024879,2]
[321484832,1712236238809,-13231.54075437,0.00024879,2]
[321484833,1712236238821,-4152.26602507,0.000249,2]
[321484834,1712236238835,-7500.0,0.000249,2]
[321484835,1712236238847,-154.12578449,0.000249,2]
[321484836,1712236238858,-317.98819328,0.000249,2]
[321484837,1712236238871,-4856.87131566,0.000249,2]
[321484838,1712236238883,-311.6439015,0.000249,2]
[321484839,1712236238895,-13231.54075437,0.000249,2]
[321484840,1712236238907,-605.11083341,0.000249,2]
[321484841,1712236238919,-1684.86390838,0.000249,2]
[321484842,1712236238931,-2197.24144358,0.0002497,2]
[321484843,1712236238942,-213.69681959,0.0002499,2]
[321484844,1712236238954,-150.02,0.00024997,2]
[321484845,1712236238966,-1149.44870901,0.00024998,2]
[321484846,1712236238978,-263.31227543,0.00024998,2]
[321484847,1712236238990,-1209.297598,0.00024998,2]
[321484848,1712236239002,-625.57956058,0.00024998,2]
[321484849,1712236239014,-720.39823514,0.00024998,2]
[321484850,1712236239026,-1888.30959056,0.00024998,2]
[321484851,1712236239037,-175.62015454,0.00024998,2]
[321484852,1712236239049,-212.53195113,0.00025,2]
[321484853,1712236239063,-20534189.52848709,0.00025,2]
[321484854,1712236239078,-1471582.52653004,0.00025,2]
[321484855,1712236239090,-1034.62081583,0.00025,2]
[321484856,1712236239101,-200.0,0.00025,2]
[321484857,1712236239113,-2601.01958159,0.00025,2]
[321484858,1712236239125,-187.75884954,0.00025,2]
[321484859,1712236239137,-155.0,0.00025,2]
[321484860,1712236239148,-286.38407441,0.00025,2]
[321484861,1712236239160,-536.45,0.00025,2]
[321484862,1712236239173,-2608932.94679848,0.00025,2]
[321484863,1712236239185,-680.45,0.00025,2]
[321484864,1712236239197,-545.83,0.00025,2]
[321484865,1712236239210,-2030.65842961,0.00025,2]
[321484866,1712236239222,-2683.91038238,0.00025,2]
[321484867,1712236239234,-127609.53220527,0.00025,2]
[321484868,1712236239259,-13009.49840809,0.000251,2]
[321484869,1712236239276,-3160.74718481,0.000251,2]
[321484870,1712236239293,-293.06,0.00025338,2]
[321484871,1712236239308,-708.53,0.0002574,2]
[321484872,1712236239323,-304.07,0.00025978,2]
[321484873,1712236239337,-339.96,0.00025978,2]
[321484874,1712236239351,-4226.28464232,0.00026,2]
[321484875,1712236239364,-244.73,0.00026078,2]
[321484876,1712236239378,-156.97,0.00026078,2]
[321484877,1712236239393,-150.0,0.00026078,2]
[321484878,1712236239407,-150.0,0.00026078,2]
[321484879,1712236239420,-348.62,0.00026078,2]
[321484880,1712236239433,-150.0,0.00026078,2]
[321484881,1712236239446,-150.0,0.00026078,2]
[321484882,1712236239459,-150.0,0.00026078,2]
[321484883,1712236239472,-348.62,0.00026078,2]
[321484884,1712236239485,-348.62,0.00026078,2]
[321484885,1712236239498,-150.0,0.00026078,2]
[321484886,1712236239510,-150.0,0.00026078,2]
[321484887,1712236239523,-150.0,0.00026078,2]
[321484888,1712236239535,-150.0,0.00026078,2]
[321484889,1712236239547,-150.0,0.00026078,2]
[321484890,1712236239560,-150.0,0.00026078,2]
[321484891,1712236239574,-150.0,0.00026078,2]
[321484892,1712236239586,-150.0,0.00026178,2]
[321484893,1712236239599,-417.08,0.00026178,2]
[321484896,1712236239611,-519.43,0.00026178,2]
[321484897,1712236239623,-417.08,0.00026178,2]
[321484898,1712236239636,-150.0,0.00026178,2]
[321484899,1712236239649,-696.62,0.00026178,2]
[321484900,1712236239663,-161.81,0.00026178,2]
[321484901,1712236239678,-519.43,0.00026178,2]
[321484902,1712236239690,-417.08,0.00026178,2]
[321484903,1712236239702,-519.43,0.00026178,2]
[321484904,1712236239714,-417.08,0.00026178,2]
[321484905,1712236239726,-417.08,0.00026178,2]
[321484907,1712236239739,-519.43,0.00026178,2]
[321484908,1712236239752,-519.43,0.00026178,2]
[321484909,1712236239764,-417.08,0.00026178,2]
[321484910,1712236239775,-417.08,0.00026178,2]
[321484911,1712236239787,-519.43,0.00026178,2]
[321484912,1712236239799,-37034.83382172,0.000263,2]
[321484913,1712236239813,-7500.0,0.0002644,2]
[321484914,1712236239825,-181.82,0.00026471,2]
[321484915,1712236239839,-800.0,0.00026877,2]
[321484916,1712236239850,-519.43,0.000269,2]
[321484918,1712236239862,-989.59,0.000269,2]
[321484920,1712236239873,-150.0,0.000269,2]
[321484921,1712236239885,-150.0,0.000269,2]
[321484922,1712236239898,-150.0,0.000269,2]
[321484923,1712236239910,-150.0,0.000269,2]
[321484924,1712236239924,-480.0,0.00026961,2]
[321484925,1712236239937,-155.0,0.00027,2]
[321484926,1712236239950,-519.43,0.00027,2]
[321484927,1712236239962,-519.43,0.00027,2]
[321484928,1712236239973,-155.76223834,0.00027,2]
[321484929,1712236239986,-1164.04,0.00027045,2]
[321484930,1712236239998,-168.29,0.00027199,2]
[321484931,1712236240009,-520.0,0.00027268,2]
[321484932,1712236240021,-179.1344671,0.00027397,2]
[321484933,1712236240033,-250.0,0.00027397,2]
[321484934,1712236240044,-374.0,0.000276,2]
[321484935,1712236240056,-1677.0,0.000277,2]
[321484936,1712236240068,-186.22,0.00028355,2]
[321484937,1712236240080,-560.73809275,0.00029,2]
[321484938,1712236240092,-7500.0,0.00029179,2]
[321484939,1712236240104,-181.82,0.0002928,2]
[321484940,1712236240115,-1164.04,0.00029309,2]
[321484941,1712236240127,-441.09329125,0.000295,3]
[321484942,1712236240138,-480.0,0.00029956,2]
[321484943,1712236240150,-2640.21942399,0.0002999,2]
[321484944,1712236240161,-3206.28076084,0.0003,2]
[321484945,1712236240174,-200.33745626,0.0003,4]
[321484946,1712236240185,-511.83608368,0.0003,4]
[321484947,1712236240196,-5008.63388399,0.0003,4]
[321484948,1712236240209,-405.14841286,0.0003,4]
[321484949,1712236240220,-155.0,0.0003,2]
[321484950,1712236240233,-1600.45488383,0.0003,4]
[321484951,1712236240245,-19294.12077171,0.0003,4]
[321484952,1712236240257,-606.74427312,0.0003,4]
[321484953,1712236240269,-680.45,0.0003,2]
[321484954,1712236240281,-545.83,0.0003,2]
[321484955,1712236240293,-593.42023571,0.0003,15]
[321484956,1712236240304,-1006.7,0.0003,2]
[321484957,1712236240315,-310.16,0.0003,2]
[321484958,1712236240327,-1911.13620197,0.00030247,28]
[321484959,1712236240339,-520.0,0.00030676,2]
[321484960,1712236240350,-1006.7,0.00030905,2]
[321484961,1712236240361,-180.0,0.00031342,2]
[321484962,1712236240373,-1164.04,0.00031572,2]
[321484963,1712236240385,-310.16,0.00031595,2]
[321484964,1712236240397,-168.29,0.00031688,2]
[321484965,1712236240409,-1006.7,0.0003181,2]
[321484966,1712236240422,-331.73521384,0.00032,4]
[321484967,1712236240434,-181.82,0.00032089,2]
[321484968,1712236240445,-1006.7,0.00032715,2]
[321484969,1712236240457,-156.25,0.00032877,2]
[321484970,1712236240468,-150.0,0.00032877,2]
[321484971,1712236240479,-156.25,0.00032877,2]
[321484972,1712236240491,-480.0,0.00032952,2]
[321484973,1712236240503,-4786.0,0.00033027,2]
[321484974,1712236240514,-5105.852,0.00033027,2]
[321484975,1712236240525,-379.663,0.00033027,2]
[321484976,1712236240537,-1048.0,0.00033027,2]
[321484977,1712236240550,-310.16,0.0003319,2]
[321484978,1712236240564,-155.62,0.00033264,2]
[321484979,1712236240575,-718.099,0.00033264,2]
[321484981,1712236240587,-973.52,0.00033264,2]
[321484983,1712236240600,-287.0,0.00033264,2]
[321484984,1712236240612,-297.858,0.00033264,2]
[321484985,1712236240624,-150.0,0.00033264,2]
[321484986,1712236240636,-1227.0,0.00033264,2]
[321484987,1712236240648,-1251.0,0.00033264,2]
[321484988,1712236240660,-434.0,0.00033264,2]
[321484989,1712236240671,-367.022,0.00033264,2]
[321484990,1712236240682,-606.0,0.00033264,2]
[321484991,1712236240694,-1000.0,0.00033264,2]
[321484992,1712236240704,-397.0,0.00033264,2]
[321484993,1712236240715,-150.0,0.00033264,2]
[321484994,1712236240727,-1140.0,0.00033264,2]
[321484995,1712236240738,-1461.0,0.00033264,2]
[321484996,1712236240749,-151.825,0.00033264,2]
[321484997,1712236240760,-2431.0,0.00033264,2]
[321484998,1712236240772,-1631.0,0.00033264,2]
[321484999,1712236240783,-207.0,0.00033264,2]
[321485000,1712236240795,-214.0,0.00033264,2]
[321485001,1712236240806,-150.0,0.000333,2]
[321485002,1712236240817,-162.42,0.000333,2]
[321485003,1712236240828,-1006.7,0.0003362,2]
[321485004,1712236240840,-150.0,0.00033742,2]
[321485005,1712236240851,-1164.04,0.00033836,2]
[321485006,1712236240862,-520.0,0.00034085,2]
[321485007,1712236240874,-1006.7,0.00034525,2]
[321485008,1712236240885,-150.0,0.00034607,2]
[321485009,1712236240897,-310.16,0.00034785,2]
[321485010,1712236240910,-1281.5331215,0.00035,4]
[321485011,1712236240924,-826.52797548,0.00035,2]
[321485012,1712236240937,-204.63259374,0.00035,2]
[321485013,1712236240950,-204.63259374,0.00035,2]
[321485014,1712236240961,-204.63259374,0.00035,2]
[321485015,1712236240974,-153.87719975,0.00035065,7]
[321485016,1712236240986,-160.34535195,0.00035136,7]
[321485017,1712236240999,-261.16365937,0.00035192,7]
[321485018,1712236241011,-536.45,0.000352,2]
[321485019,1712236241024,-153.82631398,0.00035214,7]
[321485020,1712236241036,-151.0,0.00035283,30]
[321485021,1712236241049,-202.23,0.00035294,2]
[321485022,1712236241062,-155.97762983,0.00035395,7]
[321485023,1712236241074,-152.11069391,0.00035416,7]
[321485024,1712236241086,-1006.7,0.0003543,2]
[321485025,1712236241098,-255.29102252,0.00035472,7]
[321485026,1712236241111,-150.0,0.00035472,2]
[321485027,1712236241122,-293.06,0.00035473,2]
[321485028,1712236241135,-160.34535195,0.0003554,7]
[321485029,1712236241147,-159.10975516,0.00035567,7]
[321485030,1712236241160,-1997.0,0.00035616,2]
[321485031,1712236241172,-444.52391945,0.00035746,7]
[321485032,1712236241182,-18299.22062481,0.00035855,2]
[321485033,1712236241191,-261.16365937,0.0003586,7]
[321485034,1712236241200,-155.26020619,0.00035868,7]
[321485035,1712236241209,-680.45,0.000359,7]
[321485036,1712236241220,-545.83,0.000359,2]
[321485037,1712236241230,-757.0,0.00035928,5]
[321485038,1712236241239,-480.0,0.00035947,2]
[321485039,1712236241249,-611.35104216,0.00036,2]
[321485040,1712236241258,-151.0,0.00036003,7]
[321485041,1712236241268,-4786.0,0.00036027,2]
[321485042,1712236241277,-1164.04,0.000361,2]
[321485043,1712236241286,-160.34535195,0.00036107,7]
[321485044,1712236241296,-150.50625035,0.00036127,7]
[321485045,1712236241305,-150.0,0.00036264,2]
[321485046,1712236241315,-299.0,0.00036264,2]
[321485047,1712236241848,-164.949,0.00036264,2]
[321485048,1712236241881,-603.0,0.00036264,2]
[321485049,1712236241902,-358.0,0.00036264,2]
[321485050,1712236241929,-299.0,0.00036264,2]
[321485051,1712236241940,-2408.0,0.00036264,2]
[321485052,1712236241949,-1631.0,0.00036264,2]
[321485053,1712236241960,-207.0,0.00036264,2]
[321485054,1712236241970,-214.0,0.00036264,2]
[321485055,1712236241980,-152.11069391,0.0003627,7]
[321485056,1712236241990,-1006.7,0.00036335,2]
[321485057,1712236242000,-150.0,0.00036337,2]
[321485058,1712236242009,-152.11069391,0.00036355,7]
[321485059,1712236242018,-155.97762983,0.00036368,7]
[321485060,1712236242028,-310.16,0.0003638,2]
[321485061,1712236242037,-160.34535195,0.00036437,7]
[321485062,1712236242048,-159.12958476,0.00036468,7]
[321485063,1712236242057,-150.50625035,0.00036575,7]
[321485064,1712236242066,-152.11069391,0.00036621,7]
[321485065,1712236242076,-255.29102252,0.00036656,7]
[321485066,1712236242085,-150.50625035,0.0003667,7]
[321485067,1712236242095,-151.0,0.00036738,4]
[321485068,1712236242105,-155.54109467,0.00036805,7]
[321485069,1712236242115,-255.29102252,0.00036812,7]
[321485070,1712236242125,-536.45,0.000369,2]
[321485071,1712236242135,-708.53,0.00036973,2]
[321485072,1712236242145,-4783.51462811,0.00037,4]
[321485073,1712236242154,-150.0,0.00037203,2]
[321485074,1712236242164,-152.11069391,0.00037235,7]
[321485075,1712236242176,-1006.7,0.0003724,2]
[321485076,1712236242185,-155.26020619,0.00037295,7]
[321485077,1712236242195,-261.16365937,0.00037347,7]
[321485078,1712236242204,-444.52391945,0.00037361,7]
[321485079,1712236242214,-153.87719975,0.00037394,7]
[321485080,1712236242223,-255.29102252,0.00037408,7]
[321485081,1712236242232,-261.16365937,0.00037432,7]
[321485082,1712236242242,-151.0,0.00037488,2]
[321485083,1712236242251,-520.0,0.00037493,2]
[321485084,1712236242260,-904.92,0.00037541,2]
[321485085,1712236242270,-680.45,0.000376,7]
[321485086,1712236242279,-545.83,0.000376,2]
[321485087,1712236242288,-150.50625035,0.00037619,7]
[321485088,1712236242298,-444.52391945,0.00037649,7]
[321485089,1712236242308,-155.26020619,0.00037656,7]
[321485090,1712236242317,-151.16400735,0.00037665,7]
[321485091,1712236242328,-150.0,0.00037678,2]
[321485092,1712236242338,-519.43,0.00037678,2]
[321485093,1712236242349,-348.62,0.00037678,2]
[321485094,1712236242359,-161.95,0.00037678,2]
[321485095,1712236242370,-255.29102252,0.00037688,7]
[321485096,1712236242380,-154.06850799,0.00037714,7]
[321485097,1712236242389,-160.34535195,0.00037743,7]
[321485098,1712236242399,-150.50625035,0.00037793,7]
[321485099,1712236242409,-261.16365937,0.00037806,7]
[321485100,1712236242419,-155.26020619,0.00037809,7]
[321485101,1712236242435,-155.26020619,0.00037827,7]
[321485102,1712236242445,-261.16365937,0.00037848,7]
[321485103,1712236242454,-152.11069391,0.00037906,7]
[321485104,1712236242464,-153.87719975,0.00037952,7]
[321485105,1712236242473,-310.16,0.00037975,2]
[321485106,1712236242483,-242.369205,0.00038,12]
[321485107,1712236242494,-1547.47,0.00038027,15]
[321485108,1712236242504,-155.26020619,0.00038057,7]
[321485109,1712236242514,-150.0,0.00038068,2]
[321485110,1712236242525,-1006.7,0.00038145,2]
[321485111,1712236242534,-160.34535195,0.00038169,7]
[321485112,1712236242545,-255.29102252,0.00038244,7]